fUSD/lending_fUSD_20240107
["ID","MTS","AMOUNT","RATE_DAILY","PERIOD"]
[310647031,1704630024093,500.0,0.00022999,5]
[310647032,1704630024402,500.0,0.00022999,5]
[310647033,1704630024671,500.0,0.00022999,5]
[310647034,1704630025273,500.0,0.00022999,5]
[310647035,1704630025536,202.07,0.00022999,5]
[310647036,1704630037409,500.0,0.00022,2]
[310647037,1704630038607,305.93,0.00020165,2]
[310647038,1704630038789,305.93,0.00022429,2]
[310647039,1704630048933,250.0,0.00022083,2]
[310647040,1704630051504,3908.09,0.00022083,2]
[310647041,1704630052962,2705.0,0.00022083,2]
[310647042,1704630062873,271.22,0.00022237,2]
[310647043,1704630069770,672.92,0.00022237,2]
[310647044,1704630071983,323.95,0.00022237,2]
[310647045,1704630085336,924.04369349,0.00022101,2]
[310647046,1704630085361,924.04369349,0.00022101,2]
[310647047,1704630085383,629.38261302,0.00022101,2]
[310647048,1704630124397,167.97,0.00022237,2]
[310647049,1704630126324,126.69108047,0.00022179,2]
[310647050,1704630126348,76.30891953,0.00022179,2]
[310647051,1704630156366,157.11,0.00022288,2]
[310647052,1704630167537,152.5,0.00022404,2]
[310647053,1704630167974,152.5,0.00022482,2]
[310647054,1704630189717,385.62477396,0.0002199,2]
[310647055,1704630189739,924.04369349,0.0002199,2]
[310647056,1704630189762,924.04369349,0.0002199,2]
[310647057,1704630189785,924.04369349,0.0002199,2]
[310647058,1704630189808,924.04369349,0.0002199,2]
[310647059,1704630189831,319.87045208,0.0002199,2]
[310647060,1704630206874,200.0,0.00022237,2]
[310647061,1704630242659,341.99,0.0002199,2]
[310647063,1704630261414,200.0,0.00021979,2]
[310647064,1704630265194,148.51095252,0.00021979,2]
[310647065,1704630265218,351.48904748,0.00021979,2]
[310647066,1704630284882,177.31,0.00022237,2]
[310647067,1704630288460,161.70190504,0.00022237,2]
[310647068,1704630288481,1854.95809496,0.00022237,2]
[310647069,1704630292556,194.44,0.0002197,2]
[310647070,1704630304095,265.92,0.0002197,2]
[310647071,1704630305523,8441.7,0.00022237,2]
[310647072,1704630317585,451.16,0.0002197,2]
[310647073,1704630354957,151.02040454,0.00022,2]
[310647074,1704630355904,500.0,0.00022237,2]
[310647075,1704630358501,350.0,0.00022,2]
[310647076,1704630364254,304.34,0.00021979,2]
[310647077,1704630381255,153.72270129,0.00022,2]
[310647078,1704630383860,160.84,0.00021979,2]
[310647079,1704630384077,160.84,0.00022418,2]
[310647080,1704630385620,467.21,0.00022415,2]
[310647081,1704630398321,2962.4594,0.00022436,2]
[310647082,1704630400419,23900.0,0.00022237,2]
[310647088,1704630437543,200.0,0.00021963,2]
[310647089,1704630442970,174.25,0.0001757,2]
[310647090,1704630487190,3458.3599821,0.000301,90]
[310647091,1704630499798,336.46,0.00022,2]
[310647092,1704630501408,200.0,0.00022,2]
[310647093,1704630536957,155.0,0.00021,3]
[310647094,1704630545222,5000.0,0.00028,30]
[310647099,1704630590059,153.96,0.00022404,2]
[310647100,1704630590274,153.96,0.00022469,2]
[310647101,1704630597291,275.33,0.0002032,2]
[310647122,1704630631533,-3026.38966592,0.0002252,2]
[310647123,1704630631545,-2607.61585498,0.00022521,2]
[310647124,1704630631555,-696.21438607,0.00022521,2]
[310647125,1704630631564,-762.07720286,0.00022522,2]
[310647126,1704630631574,-762.07720286,0.00022522,2]
[310647127,1704630631584,-762.07720286,0.00022522,2]
[310647128,1704630631594,-762.07720286,0.00022522,2]
[310647129,1704630631603,-42.89263086,0.00022534,2]
[310647130,1704630631616,-111.06736914,0.00022534,2]
[310647131,1704630631626,-200.0,0.00022559,2]
[310647132,1704630631635,-800.0,0.00022559,2]
[310647133,1704630631645,-200.0,0.00022559,2]
[310647134,1704630631654,-275.33,0.00022583,2]
[310647135,1704630631663,-153.96,0.00022599,2]
[310647136,1704630631673,-153.96,0.00022664,2]
[310647137,1704630631682,-153.96,0.00022728,2]
[310647138,1704630631692,-413.68350761,0.00022769,2]
[310647139,1704630631702,-153.96,0.00022793,2]
[310647140,1704630631711,-543.57,0.00022858,2]
[310647141,1704630631721,-160.84,0.00022858,2]
[310647142,1704630631730,-153.96,0.00022858,2]
[310647143,1704630631740,-161.83541914,0.00022898,2]
[310647144,1704630631750,-161.83541914,0.00022899,2]
[310647145,1704630631760,-161.83541914,0.00022899,2]
[310647146,1704630631770,-424.6498,0.000229,2]
[310647147,1704630631779,-17892.89049568,0.000229,2]
[310647148,1704630631789,-15051.94455837,0.000229,2]
[310647149,1704630631799,-55555.0,0.000229,2]
[310647150,1704630631809,-204.99891904,0.000229,2]
[310647151,1704630631819,-161.83541914,0.000229,2]
[310647152,1704630631829,-156.69,0.00022903,2]
[310647153,1704630631839,-529.1,0.00022903,2]
[310647154,1704630631849,-153.96,0.00022923,2]
[310647155,1704630631858,-341.99,0.00022969,2]
[310647156,1704630631868,-153.96,0.00022988,2]
[310647157,1704630631878,-8071.0,0.0002299,2]
[310647159,1704630631887,-523.28163115,0.00022996,2]
[310647161,1704630631897,-208.02980248,0.00022996,2]
[310647163,1704630631906,-500.0,0.00022997,2]
[310647164,1704630631916,-500.0,0.00022997,2]
[310647166,1704630631926,-270.96381267,0.00022997,2]
[310647168,1704630631935,-500.0,0.00022997,2]
[310647170,1704630631945,-638.95,0.00022997,2]
[310647172,1704630631954,-500.0,0.00022997,2]
[310647173,1704630631964,-500.0,0.00022997,2]
[310647174,1704630631974,-500.0,0.00022997,2]
[310647175,1704630631984,-500.0,0.00022997,2]
[310647176,1704630631993,-500.0,0.00022997,2]
[310647177,1704630632003,-500.0,0.00022997,2]
[310647178,1704630632013,-500.0,0.00022997,2]
[310647179,1704630632022,-500.0,0.00022997,2]
[310647180,1704630632031,-500.0,0.00022997,2]
[310647181,1704630632041,-500.0,0.00022997,2]
[310647182,1704630632051,-500.0,0.00022997,2]
[310647183,1704630632061,-500.0,0.00022997,2]
[310647184,1704630632071,-500.0,0.00022997,2]
[310647185,1704630632080,-500.0,0.00022997,2]
[310647186,1704630632090,-503.98,0.00022997,2]
[310647187,1704630632099,-500.0,0.00022997,2]
[310647188,1704630632109,-500.0,0.00022997,2]
[310647189,1704630632119,-500.0,0.00022997,2]
[310647190,1704630632128,-500.0,0.00022997,2]
[310647191,1704630632138,-500.0,0.00022997,2]
[310647192,1704630632148,-434.84,0.00022997,2]
[310647193,1704630632158,-500.0,0.00022997,2]
[310647194,1704630632168,-500.0,0.00022997,2]
[310647195,1704630632177,-500.0,0.00022997,2]
[310647196,1704630632397,-511.18765128,0.00022997,2]
[310647197,1704630632407,-500.0,0.00022997,2]
[310647198,1704630632417,-541.15395617,0.00022997,2]
[310647199,1704630632426,-220.69241614,0.00022997,2]
[310647200,1704630632436,-500.0,0.00022997,2]
[310647201,1704630632446,-500.0,0.00022997,2]
[310647202,1704630632455,-500.0,0.00022997,2]
[310647203,1704630632465,-3037.57683783,0.00022998,2]
[310647204,1704630632474,-198.74725172,0.00022998,2]
[310647205,1704630632483,-531.06,0.00022998,2]
[310647206,1704630632493,-233.80752851,0.00022998,2]
[310647207,1704630632503,-472.09928176,0.00022998,2]
[310647208,1704630632513,-767.56716434,0.00022998,2]
[310647209,1704630632523,-3151.7038,0.00022998,2]
[310647210,1704630632533,-41424.25785287,0.00022998,2]
[310647211,1704630632555,-175843.07539988,0.00022998,2]
[310647212,1704630632565,-259.11478358,0.00022998,2]
[310647213,1704630632575,-163.26888665,0.00022998,2]
[310647214,1704630632585,-254.87934661,0.00022998,2]
[310647215,1704630632595,-390.04705579,0.00022998,2]
[310647216,1704630632606,-210.92031935,0.00022998,2]
[310647217,1704630632616,-155.37655705,0.00022998,2]
[310647218,1704630632625,-220.26666446,0.00022998,2]
[310647219,1704630632634,-749.45687653,0.00022998,2]
[310647220,1704630632644,-385.00102524,0.00022998,2]
[310647221,1704630632654,-5414.31283242,0.00022998,2]
[310647222,1704630632664,-576.35910875,0.00022998,2]
[310647223,1704630632674,-155.54683003,0.00022998,2]
[310647224,1704630632683,-3761.06297707,0.00022998,4]
[310647225,1704630632692,-186.35155735,0.00022998,2]
[310647226,1704630632702,-1329.6913881,0.00022998,2]
[310647227,1704630632711,-160.55,0.00022998,2]
[310647228,1704630632721,-500.0,0.00022998,2]
[310647229,1704630632730,-200.84,0.00022998,2]
[310647230,1704630632740,-182.52,0.00022998,2]
[310647231,1704630632750,-500.0,0.00022998,2]
[310647232,1704630632760,-500.0,0.00022998,2]
[310647233,1704630632770,-271.47065642,0.00022998,2]
[310647234,1704630632779,-500.0,0.00022998,2]
[310647235,1704630632789,-500.0,0.00022998,2]
[310647236,1704630632798,-500.0,0.00022998,2]
[310647237,1704630632808,-4680.86238529,0.00022999,2]
[310647238,1704630632817,-1858.12236055,0.00022999,2]
[310647239,1704630632827,-155.47167839,0.00022999,2]
[310647240,1704630632837,-493.85260773,0.00022999,2]
[310647241,1704630632846,-369.68840107,0.00022999,2]
[310647242,1704630632856,-310.2356443,0.00022999,2]
[310647243,1704630632866,-937.04818772,0.00022999,2]
[310647244,1704630632876,-155.50679806,0.00022999,2]
[310647245,1704630632885,-155.68563984,0.00022999,2]
[310647246,1704630632895,-500.0,0.00022999,2]
[310647247,1704630632904,-509.44306855,0.00022999,2]
[310647248,1704630632914,-500.0,0.00022999,2]
[310647249,1704630632924,-500.0,0.00022999,2]
[310647250,1704630632933,-500.0,0.00022999,2]
[310647251,1704630632942,-536.86,0.00022999,2]
[310647252,1704630632952,-500.0,0.00022999,2]
[310647253,1704630632961,-500.0,0.00022999,2]
[310647254,1704630632971,-500.0,0.00022999,2]
[310647255,1704630632981,-500.0,0.00022999,2]
[310647256,1704630632990,-500.0,0.00022999,2]
[310647257,1704630633003,-500.0,0.00022999,2]
[310647258,1704630633013,-500.0,0.00022999,2]
[310647259,1704630633022,-500.0,0.00022999,2]
[310647260,1704630633032,-150.0,0.00022999,2]
[310647261,1704630633042,-150.0,0.00022999,2]
[310647262,1704630633052,-259.12,0.00022999,2]
[310647263,1704630633061,-500.0,0.00022999,2]
[310647264,1704630633070,-500.0,0.00022999,2]
[310647265,1704630633080,-213.09543899,0.00022999,2]
[310647266,1704630633090,-500.0,0.00022999,2]
[310647267,1704630633100,-500.0,0.00022999,2]
[310647268,1704630633109,-500.0,0.00022999,2]
[310647269,1704630633119,-168.21055544,0.00022999,2]
[310647270,1704630633129,-500.0,0.00022999,2]
[310647271,1704630633138,-500.0,0.00022999,2]
[310647272,1704630633148,-500.0,0.00022999,2]
[310647273,1704630633158,-193.36,0.00022999,2]
[310647274,1704630633167,-500.0,0.00022999,2]
[310647275,1704630633177,-500.0,0.00022999,2]
[310647276,1704630633186,-500.0,0.00022999,2]
[310647277,1704630633196,-505.90530813,0.00022999,2]
[310647278,1704630633206,-471.13883151,0.00022999,2]
[310647279,1704630633216,-500.0,0.00022999,2]
[310647280,1704630633226,-500.0,0.00022999,2]
[310647281,1704630633235,-500.0,0.00022999,2]
[310647282,1704630633244,-500.0,0.00022999,2]
[310647283,1704630633254,-500.0,0.00022999,2]
[310647284,1704630633263,-335.12522616,0.00022999,2]
[310647285,1704630633273,-500.0,0.00022999,2]
[310647286,1704630633283,-500.0,0.00022999,2]
[310647287,1704630633292,-500.0,0.00022999,2]
[310647288,1704630633302,-500.0,0.00022999,2]
[310647289,1704630633312,-500.0,0.00022999,2]
[310647290,1704630633322,-435.27678884,0.00022999,2]
[310647291,1704630633336,-500.0,0.00022999,2]
[310647292,1704630633346,-500.0,0.00022999,2]
[310647293,1704630633355,-184.0845542,0.00022999,2]
[310647294,1704630633366,-500.0,0.00022999,2]
[310647295,1704630633376,-500.0,0.00022999,2]
[310647296,1704630633385,-500.0,0.00022999,2]
[310647297,1704630633395,-500.0,0.00022999,2]
[310647298,1704630633405,-500.0,0.00022999,2]
[310647299,1704630633415,-504.00293673,0.00022999,2]
[310647300,1704630633425,-500.0,0.00022999,2]
[310647301,1704630633434,-500.0,0.00022999,2]
[310647302,1704630633444,-500.0,0.00022999,2]
[310647303,1704630633454,-500.0,0.00022999,2]
[310647304,1704630633464,-500.0,0.00022999,2]
[310647305,1704630633474,-500.0,0.00022999,2]
[310647306,1704630633484,-530.84,0.00022999,2]
[310647307,1704630633493,-500.0,0.00022999,2]
[310647308,1704630633504,-557.7,0.00022999,2]
[310647309,1704630633513,-500.0,0.00022999,2]
[310647310,1704630633523,-500.0,0.00022999,2]
[310647311,1704630633533,-500.0,0.00022999,2]
[310647312,1704630633543,-500.0,0.00022999,2]
[310647313,1704630633553,-500.0,0.00022999,2]
[310647314,1704630633563,-500.0,0.00022999,2]
[310647315,1704630633572,-500.0,0.00022999,2]
[310647316,1704630633582,-500.0,0.00022999,2]
[310647317,1704630633591,-500.0,0.00022999,2]
[310647318,1704630633601,-500.0,0.00022999,2]
[310647319,1704630633610,-500.0,0.00022999,2]
[310647320,1704630633621,-500.0,0.00022999,2]
[310647321,1704630633632,-500.0,0.00022999,2]
[310647322,1704630633641,-500.0,0.00022999,2]
[310647323,1704630633650,-500.0,0.00022999,2]
[310647324,1704630633659,-500.0,0.00022999,2]
[310647325,1704630633668,-500.0,0.00022999,2]
[310647326,1704630633677,-500.0,0.00022999,2]
[310647327,1704630633686,-539.26,0.00022999,2]
[310647328,1704630633695,-336.38,0.00022999,2]
[310647329,1704630633704,-500.0,0.00022999,2]
[310647330,1704630633713,-517.25542416,0.00022999,2]
[310647331,1704630633723,-500.0,0.00022999,2]
[310647332,1704630633732,-500.0,0.00022999,2]
[310647333,1704630633741,-500.0,0.00022999,2]
[310647334,1704630633751,-500.0,0.00022999,2]
[310647335,1704630633760,-500.0,0.00022999,2]
[310647336,1704630633769,-500.0,0.00022999,2]
[310647337,1704630633779,-500.0,0.00022999,2]
[310647338,1704630633788,-500.0,0.00022999,2]
[310647339,1704630633797,-500.0,0.00022999,2]
[310647340,1704630633806,-500.0,0.00022999,2]
[310647341,1704630633815,-500.0,0.00022999,2]
[310647342,1704630633825,-500.0,0.00022999,2]
[310647343,1704630633834,-500.0,0.00022999,2]
[310647344,1704630633843,-500.0,0.00022999,2]
[310647345,1704630633854,-500.0,0.00022999,2]
[310647346,1704630633863,-500.0,0.00022999,2]
[310647347,1704630633874,-300.27,0.00022999,2]
[310647348,1704630633883,-500.0,0.00022999,2]
[310647349,1704630633892,-500.0,0.00022999,2]
[310647350,1704630633901,-500.0,0.00022999,2]
[310647351,1704630633910,-500.0,0.00022999,2]
[310647352,1704630633919,-500.0,0.00022999,2]
[310647353,1704630633929,-500.0,0.00022999,2]
[310647354,1704630633938,-500.0,0.00022999,2]
[310647355,1704630633947,-334.82,0.00022999,2]
[310647356,1704630633956,-525.28018581,0.00022999,2]
[310647357,1704630633966,-500.0,0.00022999,2]
[310647358,1704630633975,-500.0,0.00022999,2]
[310647359,1704630633984,-500.0,0.00022999,2]
[310647360,1704630633993,-306.26234651,0.00022999,2]
[310647361,1704630634002,-500.0,0.00022999,2]
[310647362,1704630634012,-520.09012966,0.00022999,2]
[310647363,1704630634021,-648.71228735,0.00022999,2]
[310647364,1704630634031,-500.0,0.00022999,2]
[310647365,1704630634040,-500.0,0.00022999,2]
[310647366,1704630634049,-500.0,0.00022999,2]
[310647367,1704630634059,-500.0,0.00022999,2]
[310647368,1704630634069,-500.0,0.00022999,2]
[310647369,1704630634079,-500.0,0.00022999,2]
[310647370,1704630634088,-500.0,0.00022999,2]
[310647371,1704630634098,-500.0,0.00022999,2]
[310647372,1704630634107,-409.6,0.00022999,2]
[310647373,1704630634118,-500.0,0.00022999,2]
[310647374,1704630634128,-576.03416835,0.00022999,2]
[310647375,1704630634137,-500.0,0.00022999,2]
[310647376,1704630634146,-500.0,0.00022999,2]
[310647377,1704630634155,-500.0,0.00022999,2]
[310647378,1704630634165,-500.0,0.00022999,2]
[310647379,1704630634174,-500.0,0.00022999,2]
[310647380,1704630634184,-500.0,0.00022999,2]
[310647381,1704630634193,-500.0,0.00022999,2]
[310647382,1704630634203,-500.0,0.00022999,2]
[310647383,1704630634213,-500.0,0.00022999,2]
[310647384,1704630634223,-500.0,0.00022999,2]
[310647385,1704630634233,-500.0,0.00022999,2]
[310647386,1704630634242,-500.0,0.00022999,2]
[310647387,1704630634252,-515.59,0.00022999,2]
[310647388,1704630634263,-500.0,0.00022999,2]
[310647389,1704630634272,-500.0,0.00022999,2]
[310647390,1704630634282,-248.51193296,0.00022999,2]
[310647392,1704630634291,-150.0,0.00022999,2]
[310647393,1704630634301,-500.0,0.00022999,2]
[310647396,1704630634311,-500.0,0.00022999,2]
[310647397,1704630634321,-500.0,0.00022999,2]
[310647398,1704630634330,-500.0,0.00022999,2]
[310647399,1704630634340,-500.0,0.00022999,2]
[310647400,1704630634349,-500.0,0.00022999,2]
[310647401,1704630634359,-500.0,0.00022999,2]
[310647402,1704630634369,-500.0,0.00022999,2]
[310647403,1704630634378,-500.0,0.00022999,2]
[310647404,1704630634387,-612.71,0.00022999,2]
[310647405,1704630634397,-500.0,0.00022999,2]
[310647406,1704630634407,-500.0,0.00022999,2]
[310647407,1704630634417,-500.0,0.00022999,2]
[310647408,1704630634426,-500.0,0.00022999,2]
[310647409,1704630634437,-500.0,0.00022999,2]
[310647410,1704630634446,-500.0,0.00022999,2]
[310647411,1704630634456,-500.0,0.00022999,2]
[310647412,1704630634465,-467.06807485,0.00022999,2]
[310647413,1704630634475,-500.0,0.00022999,2]
[310647414,1704630634484,-309579.87898494,0.00023,2]
[310647415,1704630634760,-1594.0,0.00023,2]
[310647416,1704630634772,-1170.87002281,0.00023,2]
[310647417,1704630634795,-469.145,0.00023,2]
[310647418,1704630634807,-2097.41534152,0.00023,2]
[310647419,1704630634818,-1300.0,0.00023,2]
[310647420,1704630634838,-4326.93288751,0.00023,2]
[310647421,1704630634854,-3203.79866142,0.00023,2]
[310647422,1704630634865,-94060.77357664,0.00023,2]
[310647423,1704630636141,179.57,0.00023539,10]
[310647424,1704630636939,200.0,0.00022237,2]
[310647440,1704630637727,-2134.75751346,0.00022519,2]
[310647441,1704630637736,-24558.70143053,0.00023,2]
[310647442,1704630637751,-46020.0,0.00023,2]
[310647443,1704630637765,-311.84474371,0.00023,2]
[310647444,1704630637777,-960.07784106,0.00023,2]
[310647445,1704630637790,-579.92706057,0.00023,2]
[310647446,1704630637802,-2293.6778925,0.00023,2]
[310647447,1704630637817,-5158.65319427,0.00023,2]
[310647448,1704630637831,-12124.14183576,0.00023,2]
[310647449,1704630637844,-5871.73000001,0.00023,2]
[310647450,1704630637857,-7767.39058447,0.00023,2]
[310647451,1704630637871,-647.1,0.00023,2]
[310647452,1704630637888,-261.99999998,0.00023,2]
[310647453,1704630637908,-521.80240065,0.00022997,2]
[310647454,1704630637918,-69344.90152819,0.00023,2]
[310647455,1704630637931,-4103.7166656,0.00023,2]
[310647456,1704630637946,-2326.725,0.00023,2]
[310647457,1704630637959,-998.80882928,0.00023,2]
[310647458,1704630637974,-340.1437836,0.00023,2]
[310647459,1704630637991,-43678.2169,0.00023,2]
[310647460,1704630638004,-2196.36228,0.00023,2]
[310647461,1704630638016,-804.528,0.00023,2]
[310647462,1704630638027,-28879.32787467,0.00023,2]
[310647463,1704630638040,-476.54,0.00023,2]
[310647464,1704630638053,-358.01197968,0.00023,2]
[310647465,1704630638066,-2408.05007012,0.00023,2]
[310647466,1704630638084,-150010.02142076,0.00023,2]
[310647467,1704630638094,-1005916.00541889,0.00023,2]
[310647468,1704630638103,-344935.87736733,0.00023,2]
[310647469,1704630638116,-3379.13237557,0.00023,2]
[310647473,1704630640165,-1491.91095807,0.00023,2]
[310647474,1704630640177,-507.65898413,0.00023,2]
[310647475,1704630640921,-387457.70298786,0.00023,2]
[310647476,1704630640934,-122662.73028926,0.00023,2]
[310647477,1704630640945,-5514.3303019,0.00023,2]
[310647478,1704630640978,-1942.37721319,0.00023,2]
[310647479,1704630640990,-289.96267146,0.00023,2]
[310647480,1704630641098,-254.22599984,0.00023,2]
[310647481,1704630641111,-720.54062004,0.00023,2]
[310647482,1704630641124,-1075.51440885,0.00023,2]
[310647483,1704630641136,-23871.47623088,0.00023,2]
[310647484,1704630641147,-1145.7,0.00023,2]
[310647485,1704630641160,-1424.40289611,0.00023,2]
[310647486,1704630641172,-22249.77143309,0.00023,2]
[310647487,1704630641185,-591.27639412,0.00023,2]
[310647488,1704630641202,-4892.6045102,0.00023,2]
[310647489,1704630641220,-3602.21195516,0.00023,2]
[310647490,1704630641238,-4128.63986883,0.00023,2]
[310647491,1704630641250,-3933.36463944,0.00023,2]
[310647492,1704630641262,-4432.26839026,0.00023,2]
[310647493,1704630641273,-3986.2815106,0.00023,2]
[310647494,1704630641284,-12915.68685511,0.00023,2]
[310647495,1704630641298,-598.44913979,0.00023,2]
[310647500,1704630642522,-637.84853028,0.00023,2]
[310647503,1704630642582,-370.98153674,0.00023,2]
[310647504,1704630642747,-1540.74785894,0.00023,2]
[310647505,1704630642804,-266.4352264,0.00023,2]
[310647506,1704630642816,-3610.85886009,0.00023,2]
[310647507,1704630642829,-1561.6614768,0.00023,2]
[310647508,1704630642841,-2997.13554682,0.00023,2]
[310647509,1704630642853,-3144.61045249,0.00023,2]
[310647510,1704630642865,-2366.55296797,0.00023,2]
[310647511,1704630642878,-4814.59875399,0.00023,2]
[310647512,1704630642890,-5645.57822948,0.00023,2]
[310647513,1704630642903,-955.09207784,0.00023,2]
[310647514,1704630642923,-443.4506406,0.00023,2]
[310647515,1704630642934,-32364.69635954,0.00023,2]
[310647532,1704630646729,-1032.25963544,0.00022999,2]
[310647533,1704630646739,-165.24035487,0.00022999,2]
[310647534,1704630646749,-208.02980248,0.00022999,2]
[310647535,1704630646758,-38900.0386067,0.00023,2]
[310647536,1704630646770,-8819.85,0.00023,2]
[310647537,1704630646782,-10269.8958882,0.00023,2]
[310647538,1704630646793,-3059.74209949,0.00023,2]
[310647539,1704630646806,-1807.06482463,0.00023,2]
[310647540,1704630664452,379.06,0.00022237,2]
[310647541,1704630671086,300.0,0.000222,8]
[310647542,1704630673187,600.0,0.000223,8]
[310647543,1704630675330,900.0,0.000224,8]
[310647544,1704630677444,1200.0,0.000225,8]
[310647545,1704630679555,1500.0,0.000226,8]
[310647546,1704630681668,300.0,0.000227,8]
[310647547,1704630683753,300.0,0.000228,8]
[310647548,1704630686031,300.0,0.000229,8]
[310647550,1704630792941,155.39,0.00022171,2]
[310647551,1704630793324,155.39,0.00022295,2]
[310647552,1704630793547,155.39,0.00022418,2]
[310647553,1704630823711,524.87225677,0.0002207,2]
[310647554,1704630823736,114.19774323,0.0002207,2]
[310647555,1704630852320,410.67451354,0.00021,2]
[310647556,1704630852345,524.87225677,0.00021,2]
[310647557,1704630852369,49.45322969,0.00021,2]
[310647559,1704630904153,406.17,0.00022237,2]
[310647560,1704630974100,69.24902708,0.00022,2]
[310647561,1704630974135,106.65097292,0.00022,2]
[310647562,1704630982246,418.22128385,0.00022237,2]
[310647563,1704630982271,524.87225677,0.00022237,2]
[310647564,1704630982294,524.87225677,0.00022237,2]
[310647565,1704630982318,524.87225677,0.00022237,2]
[310647566,1704630982341,524.87225677,0.00022237,2]
[310647567,1704630982364,524.87225677,0.00022237,2]
[310647568,1704630982390,524.87225677,0.00022237,2]
[310647569,1704630982414,524.87225677,0.00022237,2]
[310647570,1704630982438,524.87225677,0.00022237,2]
[310647571,1704630982464,524.87225677,0.00022237,2]
[310647572,1704630982489,524.87225677,0.00022237,2]
[310647573,1704630982515,524.87225677,0.00022237,2]
[310647574,1704630982539,524.87225677,0.00022237,2]
[310647575,1704630982564,524.87225677,0.00022237,2]
[310647576,1704630982586,690.50095252,0.00022237,2]
[310647577,1704630982610,15967.93842562,0.00022237,2]
[310647578,1704631026970,168.23,0.00021833,2]
[310647579,1704631032367,257.26,0.00019915,2]
[310647580,1704631032577,257.26,0.00022179,2]
[310647581,1704631077743,158.36,0.00022051,2]
[310647582,1704631080600,154.98,0.00022404,2]
[310647583,1704631136310,353.78,0.00021824,2]
[310647584,1704631204215,203.0,0.00021881,2]
[310647585,1704631241789,962.4,0.00021818,2]
[310647586,1704631286682,178.03,0.00022237,2]
[310647587,1704631461330,168.23,0.00021851,2]
[310647588,1704631476896,18183.79,0.00021851,2]
[310647589,1704631550188,157.11,0.00022074,2]
[310647590,1704631550266,249.5,0.00019938,2]
[310647591,1704631550481,249.5,0.00022202,2]
[310647592,1704631559110,368.96,0.00022237,2]
[310647593,1704631603654,350.32,0.00022,2]
[310647600,1704631643634,155.45,0.0002198,2]
[310647601,1704631643856,155.45,0.00022084,2]
[310647602,1704631644057,155.45,0.00022188,2]
[310647603,1704631644265,155.45,0.00022293,2]
[310647604,1704631644486,155.45,0.00022397,2]
[310647605,1704631684041,205.32,0.00021812,10]
[310647606,1704631684224,205.32,0.00022346,10]
[310647607,1704631684434,205.32,0.0002288,10]
[310647608,1704631684631,205.32,0.00023415,10]
[310647609,1704631684847,205.32,0.00023949,10]
[310647615,1704631690058,1250.0,0.00021,3]
[310647640,1704631758912,563.74,0.00021804,2]
[310647641,1704631760328,162.6,0.00021804,2]
[310647647,1704631813133,155.38164155,0.00021804,2]
[310647648,1704631821602,1094.91415065,0.00021804,2]
[310647671,1704631831721,-155.45,0.00022501,2]
[310647672,1704631831734,-155.39,0.00022541,2]
[310647673,1704631831749,-155.45,0.00022605,2]
[310647674,1704631831758,-109.4724872,0.00022658,2]